bitfinex/quotes_ETHUSD_20250827
["timestamp","ask_amount","ask_price","bid_price","bid_amount"]
[1756315508585,3.79249327,4636.7,4636.6,0.001]
[1756315508895,1.07137225,4636.7,4636.6,0.001]
[1756315511007,10.36475651,4636.7,4636.6,0.001]
[1756315511306,10.34319999,4636.7,4636.6,0.001]
[1756315511606,14.01419999,4636.7,4636.6,0.001]
[1756315511805,17.01419999,4636.7,4636.6,0.001]
[1756315512105,18.67319999,4636.7,4636.6,0.001]
[1756315514603,18.75970099,4636.7,4636.6,0.001]
[1756315515534,18.42202874,4636.7,4636.6,0.001]
[1756315516574,25.57202874,4636.7,4636.6,0.001]
[1756315516785,25.68002874,4636.7,4636.6,0.001]
[1756315517007,14.89390727,4636.7,4636.6,0.001]
[1756315517190,18.47840627,4636.7,4636.6,0.001]
[1756315518614,18.81609421,4636.7,4636.6,0.001]
[1756315519527,18.08239421,4636.7,4636.6,0.001]
[1756315520089,13.42339421,4636.7,4636.6,0.001]
[1756315520293,0.33768794,4636.7,4636.6,0.2994]
[1756315520822,2.49439421,4636.7,4636.6,0.001]
[1756315521187,0.33768794,4636.7,4636.6,0.2994]
[1756315521605,2.49439421,4636.7,4636.6,0.2994]
[1756315522205,11.22797387,4636.7,4636.6,0.001]
[1756315522406,11.20641735,4636.7,4636.6,0.001]
[1756315522594,4.09129588,4636.7,4636.6,0.001]
[1756315522799,3.26965073,4636.7,4636.6,0.001]
[1756315523410,6.48825073,4636.7,4636.6,0.001]
[1756315523621,6.46669421,4636.7,4636.6,0.001]
[1756315524128,4.00868794,4636.7,4636.6,0.2994]
[1756315524621,6.46669421,4636.7,4636.6,0.001]
[1756315524823,6.91909421,4636.7,4636.6,0.001]
[1756315525010,6.46669421,4636.7,4636.6,0.001]
[1756315525216,4.00868794,4636.7,4636.6,0.001]
[1756315525533,6.16539421,4636.7,4636.6,0.001]
[1756315525826,0.33768794,4636.7,4636.6,0.2994]
[1756315527230,0.002,4636.8,4636.6,0.92782601]
[1756315527727,0.002,4636.8,4636.7,0.108]
[1756315528123,0.3033,4636.8,4636.6,0.001]
[1756315528322,0.3013,4636.7,4636.6,0.001]
[1756315528516,0.002,4636.8,4636.6,0.001]
[1756315528826,0.002,4636.8,4636.7,0.2984]
[1756315532920,0.002,4636.8,4636.6,0.001]
[1756315532921,2.15670627,4636.7,4636.6,0.001]
[1756315533236,2.91040627,4636.7,4636.6,0.001]
[1756315533532,10.70748054,4636.7,4636.6,0.001]
[1756315533737,10.79392402,4636.7,4636.6,0.001]
[1756315534524,3.67880255,4636.7,4636.6,0.001]
[1756315534833,0.88325652,4636.7,4636.6,0.001]
[1756315537340,13.80352774,4636.7,4636.6,0.001]
[1756315539825,14.14120833,4636.7,4636.6,0.001]
[1756315541032,14.22770433,4636.7,4636.6,0.001]
[1756315541411,10.55770433,4636.7,4636.6,0.001]
[1756315541612,0.33768059,4636.7,4636.6,0.2994]
[1756315542560,0.33768059,4636.7,4636.6,2.45615279]
[1756315542871,0.002,4636.8,4636.6,0.2994]
[1756315543138,0.002,4636.8,4636.6,2.45614026]
[1756315543455,0.002,4636.8,4636.7,2.63670627]
[1756315543812,0.002,4636.8,4636.7,0.7784]
[1756315544008,0.002,4636.8,4636.7,0.4064]
[1756315546046,2.45995976,4636.8,4636.7,0.108]
[1756315546346,2.15670627,4636.7,4636.6,0.001]
[1756315546549,0.02155652,4636.7,4636.6,0.001]
[1756315546733,2.15869635,4636.8,4636.6,0.001]
[1756315547447,0.002,4636.8,4636.6,0.001]
[1756315547811,0.002,4636.8,4636.7,0.3089]
[1756315548018,0.002,4636.8,4636.7,0.4169]
[1756315548546,0.002,4636.8,4636.7,0.7889]
[1756315548844,0.002,4636.8,4636.7,0.4169]
[1756315549171,2.15865976,4636.8,4636.6,0.001]
[1756315549370,0.02155652,4636.7,4636.6,0.001]
[1756315549675,2.48406279,4636.7,4636.6,0.001]
[1756315549887,2.94806279,4636.7,4636.6,0.001]
[1756315550065,3.55409441,4636.7,4636.6,0.001]
[1756315551339,0.108,4636.7,4636.6,0.3099]
[1756315551737,0.002,4636.8,4636.6,0.3099]
[1756315552375,0.002,4636.8,4636.7,2.15670627]
[1756315552673,0.002,4636.8,4636.7,2.26470627]
[1756315552976,0.002,4636.8,4636.7,2.94560627]
[1756315553136,0.002,4636.8,4636.7,3.08394669]
[1756315553341,0.337635,4638.5,4638.4,2.94791583]
[1756315553550,1.659,4641.4,4638.7,2.9477764]
[1756315553551,0.464,4639.9,4638.7,2.9477764]
[1756315553977,0.464,4639.9,4638.7,4.0906764]
[1756315554277,0.04155652,4639.8,4638.7,2.4646764]
[1756315554441,0.02,4639.8,4638.7,6.64823416]
[1756315554635,0.02,4639.8,4638.7,6.6266764]
[1756315554878,0.02,4639.8,4638.7,8.23573276]
[1756315555039,0.02,4639.8,4638.7,8.69973276]
[1756315555582,0.04155652,4639.8,4638.7,12.05673276]
[1756315555742,0.464,4639.7,4638.7,7.53773276]
[1756315556079,0.02155652,4639.6,4638.7,10.79973276]
[1756315556282,0.464,4639.7,4638.7,10.79973276]
[1756315556439,0.04155652,4639.8,4638.7,11.16973276]
[1756315556440,0.02,4639.8,4638.7,11.16973276]
[1756315556653,0.02,4639.8,4638.7,7.44373276]
[1756315556859,0.02,4639.8,4638.7,11.95973276]
[1756315558291,0.02,4639.8,4638.7,8.23573276]
[1756315558496,0.02,4639.8,4638.7,11.96173276]
[1756315558862,0.022,4638.8,4638.7,11.96173276]
[1756315559390,0.022,4638.8,4638.7,8.23573276]
[1756315559780,0.022,4638.8,4638.7,10.79773276]
[1756315560094,0.022,4638.8,4638.7,11.58973276]
[1756315560786,0.022,4638.8,4638.7,11.95973276]
[1756315560960,0.022,4638.8,4638.7,7.86573276]
[1756315561390,0.022,4638.8,4638.7,11.59573276]
[1756315561694,0.022,4638.8,4638.7,11.96573276]
[1756315562481,1e-08,4638.8,4638.7,11.96573276]
[1756315563867,1e-08,4638.8,4638.7,12.07373276]
[1756315564897,1e-08,4638.8,4638.7,12.15812676]
[1756315565102,1e-08,4638.8,4638.7,9.71812676]
[1756315565265,1e-08,4639.3,4638.7,13.81512676]
[1756315565463,1e-08,4639.3,4639.2,5.94754405]
[1756315565663,0.02,4640.8,4640.7,2.94684732]
[1756315565870,0.02,4640.8,4640.7,11.75174732]
[1756315567290,1e-08,4640.8,4640.7,11.95033911]
[1756315567608,1e-08,4640.8,4640.7,11.95433911]
[1756315567807,1e-08,4640.8,4640.7,6.17692584]
[1756315568005,1e-08,4640.8,4640.7,11.95436604]
[1756315568209,1e-08,4640.8,4640.7,11.16636604]
[1756315568504,1e-08,4640.8,4640.7,8.02174732]
[1756315568702,1e-08,4640.8,4640.7,11.75974732]
[1756315569071,1e-08,4640.8,4640.7,11.45184732]
[1756315569267,1e-08,4640.8,4640.7,12.65635318]
[1756315569492,1e-08,4640.8,4640.7,12.96525318]
[1756315569702,1e-08,4640.8,4640.7,13.33525318]
[1756315569889,1e-08,4640.8,4640.7,13.22725318]
[1756315570096,1e-08,4640.8,4640.7,13.33525318]
[1756315570591,1e-08,4640.8,4640.7,13.33425318]
[1756315571107,1e-08,4640.8,4640.7,8.12535318]
[1756315571303,1e-08,4640.8,4640.7,11.86335318]
[1756315571471,1e-08,4640.8,4640.7,12.17225318]
[1756315571892,1e-08,4640.8,4640.7,13.33425318]
[1756315572108,1e-08,4640.8,4640.7,13.53270035]
[1756315572604,1e-08,4640.8,4640.7,18.71370035]
[1756315573875,1e-08,4640.8,4640.7,19.17770035]
[1756315574200,0.04,4642.8,4642.7,2.94591905]
[1756315574401,0.04,4642.8,4642.7,8.34191905]
[1756315574616,0.8098,4642.8,4642.7,8.34191905]
[1756315574779,0.8098,4642.8,4642.7,3.97448462]
[1756315574979,0.8098,4642.8,4642.7,7.71348462]
[1756315575214,0.8098,4642.8,4642.7,9.24674301]
[1756315575399,0.8098,4642.8,4642.7,5.50774301]
[1756315575716,0.8098,4642.8,4642.7,9.24574301]
[1756315576414,0.8098,4642.8,4642.7,7.71448462]
[1756315576727,0.04,4642.8,4642.7,7.71448462]
[1756315576927,0.04,4642.8,4642.7,8.50648462]
[1756315577216,0.7645,4642.8,4642.7,7.71448462]
[1756315577415,0.7645,4642.8,4642.7,5.56056557]
[1756315577582,0.7645,4642.8,4642.7,1.657]
[1756315577783,0.7645,4642.8,4641.9,2.1542737]
[1756315577983,0.72273274,4642.7,4642.0,3.742]
[1756315578178,0.2936,4642.1,4642.0,3.742]
[1756315578399,0.7245,4642.1,4642.0,5.89624386]
[1756315578711,0.2936,4642.1,4642.0,5.89624386]
[1756315579419,0.7245,4642.1,4642.0,5.89624386]
[1756315579717,0.7245,4642.1,4642.0,3.90295627]
[1756315580015,0.7245,4642.1,4642.0,3.741]
[1756315580713,0.4309,4642.5,4642.0,3.741]
[1756315580923,0.2936,4642.1,4642.0,5.89524386]
[1756315581085,0.4309,4642.4,4642.0,3.74]
[1756315581413,0.2936,4642.1,4642.0,0.15941635]
[1756315581625,0.7245,4642.1,4642.0,3.74]
[1756315581915,0.4729,4642.8,4642.3,2.15409046]
[1756315582101,0.042,4642.8,4642.4,5.89505573]
[1756315582302,0.4309,4642.7,4642.6,2.15396545]
[1756315582505,0.7245,4642.7,4642.5,5.89500334]
[1756315582709,0.7245,4642.7,4642.6,2.15396545]
[1756315583622,0.7245,4642.7,4642.5,3.741]
[1756315583918,0.2936,4642.7,4642.6,2.15396545]
[1756315584224,0.2936,4642.7,4642.6,2.26196545]
[1756315584392,0.2936,4642.7,4642.6,3.738]
[1756315584792,0.7245,4642.7,4642.6,3.738]
[1756315585192,0.7245,4642.7,4642.6,5.89196545]
[1756315585419,0.042,4642.8,4642.7,2.15391905]
[1756315585615,0.042,4642.8,4642.7,2.35354796]
[1756315585887,0.042,4642.8,4642.7,4.11854796]
[1756315586086,0.7665,4642.8,4642.7,1.96462891]
[1756315586317,0.7665,4642.8,4642.7,5.70962891]
[1756315586517,0.7665,4642.8,4642.7,7.86354796]
[1756315586754,0.3356,4642.8,4642.7,5.70962891]
[1756315586899,0.3356,4642.8,4642.7,7.86354796]
[1756315586900,0.7665,4642.8,4642.7,7.86354796]
[1756315587096,0.042,4642.8,4642.7,7.86354796]
[1756315587310,0.042,4642.8,4642.7,4.11854796]
[1756315587511,0.042,4642.8,4642.7,7.86354796]
[1756315587844,0.042,4642.8,4642.7,8.65554796]
[1756315589234,0.042,4642.8,4642.7,8.65354796]
[1756315589434,0.3356,4642.8,4642.7,1.96462891]
[1756315589601,0.3356,4642.8,4642.7,5.70662891]
[1756315589602,0.7665,4642.8,4642.7,5.70662891]
[1756315589803,0.7665,4642.8,4642.7,7.86054796]
[1756315590000,0.042,4642.8,4642.7,8.93904796]
[1756315590205,0.042,4642.8,4642.7,9.76259581]
[1756315591335,0.7665,4642.8,4642.7,7.86179551]
[1756315592039,0.7665,4642.8,4642.7,4.11880446]
[1756315592338,0.7665,4642.8,4642.7,7.66191905]
[1756315592543,0.042,4642.8,4642.7,7.66191905]
[1756315592903,0.7665,4642.8,4642.7,7.66191905]
[1756315593244,0.042,4642.8,4642.7,3.91891905]
[1756315593443,0.042,4642.8,4642.7,7.66191905]
[1756315594340,0.7665,4642.8,4642.7,7.66191905]
[1756315594508,0.042,4642.8,4642.7,7.66191905]
[1756315595515,0.3356,4642.8,4642.7,7.66191905]
[1756315596048,0.7665,4642.8,4642.7,7.66091905]
[1756315596221,0.7665,4642.8,4642.7,1.765]
[1756315596819,0.7665,4642.8,4642.7,3.741]
[1756315597144,1.05853723,4642.8,4642.7,3.741]
[1756315597526,0.7665,4642.8,4642.7,3.741]
[1756315597915,0.7665,4642.8,4642.4,0.108]
[1756315598107,0.7665,4642.8,4642.5,3.74]
[1756315598308,0.4309,4642.7,4642.5,3.74]
[1756315598504,0.7245,4642.6,4642.5,3.74]
[1756315598931,0.7245,4642.6,4642.5,3.739]
[1756315599129,0.7245,4642.6,4642.5,3.738]
[1756315600046,0.7245,4642.6,4642.5,5.89201184]
[1756315600416,0.7245,4642.6,4642.5,6.00001184]
[1756315600919,0.7245,4642.6,4642.5,0.108]
[1756315601126,0.7245,4642.6,4642.5,3.845]
[1756315601307,0.7245,4642.6,4642.5,5.99901184]
[1756315601512,0.042,4642.8,4642.7,2.15391905]
[1756315601807,0.042,4642.8,4642.7,6.17741905]
[1756315602431,0.042,4642.8,4642.7,3.737]
[1756315602636,0.7665,4642.8,4642.7,3.737]
[1756315603345,0.7665,4642.8,4642.7,5.99891905]
[1756315603550,0.7665,4642.8,4642.7,3.845]
[1756315603846,0.7665,4642.8,4642.0,0.1654814]
[1756315604015,0.02155652,4642.7,4642.1,3.739]
[1756315604217,0.75744543,4642.7,4642.0,0.108]
[1756315604555,0.75744543,4642.7,4641.9,1.656]
[1756315604556,0.2936,4642.1,4641.9,3.739]
[1756315604715,0.45245652,4642.0,4641.9,3.739]
[1756315604915,0.74605652,4642.0,4641.9,3.739]
[1756315605316,0.74605652,4642.0,4641.9,3.738]
[1756315605919,0.7245,4642.0,4641.9,3.738]
[1756315606152,0.7245,4642.0,4641.7,0.108]
[1756315606450,0.4309,4641.9,4641.8,3.736]
[1756315606639,0.7254,4641.9,4641.8,3.736]
[1756315607833,0.7254,4641.9,4641.8,3.734]
[1756315608229,0.74695652,4641.9,4641.7,0.108]
[1756315608555,0.31605652,4641.9,4641.8,3.733]
[1756315608726,0.2945,4641.9,4641.7,0.108]
[1756315608930,0.2945,4641.9,4641.8,3.733]
[1756315609136,0.2945,4641.9,4641.7,0.108]
[1756315609339,0.2945,4641.9,4641.8,3.733]
[1756315610016,0.7517,4641.9,4641.8,3.733]
[1756315610217,0.108,4642.4,4641.8,4.0325]
[1756315610420,0.042,4642.8,4642.3,0.108]
[1756315610657,0.042,4642.8,4642.7,2.45341905]
[1756315610953,0.7937,4642.8,4642.7,0.108]
[1756315611160,0.7937,4642.8,4642.7,3.732]
[1756315611526,0.7937,4642.8,4642.5,0.108]
[1756315611726,0.47875652,4642.7,4642.6,3.731]
[1756315611961,0.2945,4642.7,4642.6,3.731]
[1756315612165,0.2945,4642.7,4642.5,0.108]
[1756315612458,0.4572,4642.6,4642.4,1.657]
[1756315612659,0.042,4642.8,4642.5,3.73]
[1756315612827,0.042,4642.8,4642.6,0.108]
[1756315613023,0.042,4642.8,4642.4,1.657]
[1756315613024,0.042,4642.8,4642.7,3.73]
[1756315613561,0.3365,4642.8,4642.7,3.73]
[1756315613761,0.042,4642.8,4642.7,3.73]
[1756315614762,0.3365,4642.8,4642.7,3.73]
[1756315615060,0.7937,4642.8,4642.7,3.73]
[1756315615465,0.7937,4642.8,4642.7,3.838]
[1756315616264,0.7937,4642.8,4642.7,0.108]
[1756315616441,0.7937,4642.8,4642.7,3.838]
[1756315616770,0.042,4642.8,4642.7,3.838]
[1756315616972,0.3365,4642.8,4642.7,3.838]
[1756315617137,0.7937,4642.8,4642.7,3.836]
[1756315618365,0.7937,4642.8,4642.7,0.108]
[1756315618571,0.7937,4642.8,4642.7,3.836]
[1756315618956,0.7937,4642.8,4642.7,3.726]
[1756315619266,0.7937,4642.8,4642.4,1.657]
[1756315619466,0.3365,4642.8,4642.7,3.725]
[1756315619668,0.3365,4642.8,4642.4,1.657]
[1756315619669,2.75236211,4642.8,4642.4,1.657]
[1756315619876,5.75236211,4642.8,4642.7,3.726]
[1756315620035,2.15392047,4642.7,4642.4,1.657]
[1756315620397,2.15416819,4642.2,4642.0,0.108]
[1756315620675,0.108,4641.5,4640.3,0.001]
[1756315620887,3.0,4641.8,4640.3,0.109]
[1756315621065,0.4025,4640.9,4640.3,0.109]
[1756315621375,2.15470685,4641.1,4640.6,1.861]
[1756315621534,2.15457283,4641.3,4640.6,1.861]
[1756315621738,0.4572,4641.4,4640.8,0.109]
[1756315621975,0.12955652,4641.5,4640.8,0.109]
[1756315622370,5.26248353,4641.5,4640.8,0.109]
[1756315622541,0.90737707,4641.5,4640.8,0.109]
[1756315622735,2.55725446,4640.9,4640.8,0.001]
[1756315622996,2.57881098,4640.9,4640.8,0.001]
[1756315623167,3.03601098,4640.9,4640.8,0.001]
[1756315624152,9.76401098,4640.9,4640.8,0.001]
[1756315624355,9.74245446,4640.9,4640.8,0.001]
[1756315624547,11.14117812,4640.9,4640.8,0.001]
[1756315625743,11.14317812,4640.9,4640.8,0.001]
[1756315626688,11.14317812,4640.9,4640.3,0.001]
[1756315626689,0.792,4640.5,4640.3,0.001]
[1756315626986,2.15568345,4638.9,4638.8,0.02]
[1756315627193,2.47173997,4638.9,4638.8,0.02]
[1756315627368,0.02155652,4638.9,4638.8,0.02]
[1756315627544,2.15568345,4638.9,4638.8,0.02]
[1756315628069,2.15563947,4639.0,4638.8,0.02]
[1756315628275,2.15567955,4639.0,4638.8,0.02]
[1756315628464,2.15568345,4638.9,4638.8,0.02]
[1756315628665,0.02155652,4639.0,4638.8,0.02]
[1756315628870,0.3374752,4639.2,4638.9,0.2995]
[1756315629047,0.02155652,4639.7,4638.9,0.2995]
[1756315629247,0.4572,4640.1,4638.9,2.8925]
[1756315629248,2.15554112,4639.3,4638.9,2.8925]
[1756315629551,0.02155652,4639.3,4638.9,2.8925]
[1756315629781,2.15558911,4639.2,4638.9,2.8925]
[1756315629964,0.2945,4639.0,4638.8,0.02]
[1756315630179,2.15568345,4638.9,4638.8,0.02]
[1756315630579,2.90738345,4638.9,4638.8,0.02]
[1756315631352,0.2945,4638.9,4638.8,0.02]
[1756315631552,0.4572,4639.5,4638.8,0.02]
[1756315631754,2.15558297,4639.2,4638.8,0.3195]
[1756315631973,2.15568345,4638.9,4638.8,0.02]
[1756315632482,2.90738345,4638.9,4638.8,0.02]
[1756315632688,0.2945,4638.9,4638.8,0.02]
[1756315632874,0.02155652,4639.1,4638.8,0.02]
[1756315633183,3.02155652,4639.3,4638.8,0.02]
[1756315633388,2.45018345,4638.9,4638.8,0.02]
[1756315633685,2.47173997,4638.9,4638.8,0.02]
[1756315633985,2.92893997,4638.9,4638.8,0.02]
[1756315634365,2.92893997,4638.9,4638.8,0.021]
[1756315634772,5.92893997,4638.9,4638.8,0.021]
[1756315634976,6.50146795,4638.9,4638.8,0.021]
[1756315635286,10.24646795,4638.9,4638.8,0.021]
[1756315635478,9.65238345,4638.9,4638.8,0.021]
[1756315636651,9.76038345,4638.9,4638.8,0.021]
[1756315639377,12.03538345,4638.9,4638.8,0.021]
[1756315639583,9.76038345,4638.9,4638.8,0.021]
[1756315639890,3.108,4638.9,4638.8,0.021]
[1756315640089,0.108,4638.9,4638.8,0.3287]
[1756315640276,2.15565268,4639.0,4638.8,0.3287]
[1756315640457,3.33747448,4639.2,4638.8,0.021]
[1756315640458,2.15568345,4638.9,4638.8,0.021]
[1756315640896,0.12955652,4639.1,4638.8,0.021]
[1756315641056,5.45318345,4638.9,4638.8,0.021]
[1756315641456,3.0,4638.9,4638.8,0.021]
[1756315641694,5.26368345,4638.9,4638.8,0.3287]
[1756315642197,5.26368345,4638.9,4638.8,0.021]
[1756315643881,7.15,4639.0,4638.8,0.3287]
[1756315644083,2.15568345,4638.9,4638.8,0.3287]
[1756315644280,2.15568345,4638.9,4638.8,0.021]
[1756315644806,7.15,4639.0,4638.8,0.3287]
[1756315645479,2.15568345,4638.9,4638.8,0.3287]
[1756315645885,7.15,4639.0,4638.8,0.3287]
[1756315646974,7.258,4639.1,4638.8,0.3287]
[1756315647170,0.108,4639.1,4638.8,0.3287]
[1756315647375,2.15530368,4639.8,4639.0,0.108]
[1756315647609,0.02155652,4639.8,4639.0,0.108]
[1756315647807,3.02155652,4639.8,4639.3,0.108]
[1756315648009,2.15540089,4639.6,4639.3,0.108]
[1756315648180,2.15545113,4639.4,4639.3,0.108]
[1756315648509,2.15545113,4639.4,4638.8,0.021]
[1756315648694,0.02155652,4639.4,4638.8,0.021]
[1756315648893,0.12955652,4639.6,4639.3,0.3077]
[1756315649111,0.2975,4639.4,4638.8,0.021]
[1756315649294,2.47450909,4639.4,4638.8,0.129]
[1756315649492,0.2975,4639.4,4638.8,0.129]
[1756315649686,2.62386468,4639.5,4638.8,0.129]
[1756315649882,2.15547087,4639.4,4638.8,0.129]
[1756315650580,0.46845652,4639.5,4638.8,0.129]
[1756315650875,0.4469,4639.5,4638.8,0.129]
[1756315651519,0.02155652,4639.6,4639.4,0.3077]
[1756315651844,2.15548856,4639.4,4638.9,0.108]
[1756315651981,2.17700765,4639.4,4638.9,0.108]
[1756315652181,2.62390765,4639.4,4638.9,0.108]
[1756315652716,0.4469,4639.4,4638.9,0.108]
[1756315653210,2.15540623,4639.5,4638.9,0.108]
[1756315653713,0.12955652,4639.6,4638.9,0.108]
[1756315653902,0.108,4639.6,4638.9,0.108]
[1756315654214,0.108,4639.6,4638.9,2.26366701]
[1756315654878,2.26336209,4639.6,4638.9,2.26366701]
[1756315655079,0.108,4639.6,4638.9,0.108]
[1756315655279,0.108,4639.9,4639.3,0.108]
[1756315655613,2.26322606,4639.9,4639.3,0.108]
[1756315655782,2.26322944,4639.9,4639.3,0.108]
[1756315656516,2.15527069,4639.8,4639.3,0.108]
[1756315656814,0.108,4639.9,4639.3,0.108]
[1756315656985,0.33742249,4640.0,4639.7,0.3077]
[1756315657180,0.33742249,4640.0,4639.7,0.4157]
[1756315657495,0.02155652,4639.9,4639.7,0.108]
[1756315660217,2.49260531,4640.0,4639.7,0.108]
[1756315660384,0.33742249,4640.0,4639.7,0.108]
[1756315660584,0.02155652,4639.9,4639.7,0.108]
[1756315660779,2.17679367,4639.9,4639.2,3.81353562]
[1756315660986,2.17679367,4639.9,4639.5,0.108]
[1756315662136,0.33742249,4640.0,4639.5,0.108]
[1756315662601,2.15523654,4639.9,4639.5,0.108]
[1756315662806,2.15521886,4639.9,4639.5,0.108]
[1756315663310,2.49260778,4640.0,4639.5,0.108]
[1756315663501,0.33742249,4640.0,4639.5,2.26337032]
[1756315663702,0.33742249,4640.0,4639.9,0.3077]
[1756315663933,7.15,4640.1,4639.9,0.3077]
[1756315664114,2.15704297,4640.3,4640.0,0.108]
[1756315664436,0.2975,4640.1,4640.0,0.108]
[1756315664998,0.7444,4640.1,4640.0,0.108]
[1756315665994,0.2975,4640.1,4640.0,0.108]
[1756315666394,0.7444,4640.1,4640.0,0.108]
[1756315667016,0.7444,4640.1,4639.7,0.108]
[1756315667202,0.46035652,4640.0,4639.7,0.108]
[1756315667707,0.02355652,4640.3,4639.7,2.2633085]
[1756315667923,0.002,4640.3,4639.9,0.3005]
[1756315668705,2.59585007,4640.3,4639.9,0.3005]
[1756315668905,2.59585007,4640.3,4639.7,0.108]
[1756315669105,0.02155652,4640.2,4639.7,0.108]
[1756315669331,2.59396144,4640.1,4639.7,0.108]
[1756315669545,0.02155652,4640.0,4639.7,0.108]
[1756315669743,0.4388,4640.1,4639.7,0.108]
[1756315670424,0.46035652,4640.0,4639.7,0.108]
[1756315671021,0.3103,4639.8,4639.7,0.108]
[1756315671241,0.33185652,4639.8,4639.7,0.108]
[1756315671752,0.77065652,4639.8,4639.7,0.108]
[1756315671946,0.3103,4639.8,4639.7,0.108]
[1756315672502,0.4388,4640.1,4639.7,0.108]
[1756315672708,0.108,4640.2,4639.7,0.108]
[1756315673042,0.002,4640.3,4639.7,2.26330968]
[1756315673240,0.002,4640.3,4639.7,0.108]
[1756315673606,0.002,4640.3,4639.7,2.26331131]
[1756315673936,0.002,4640.3,4639.7,0.108]
[1756315674303,7.152,4640.3,4639.7,2.2633111]
[1756315674727,7.152,4640.3,4639.6,0.001]
[1756315674924,7.152,4640.3,4640.1,0.108]
[1756315675126,7.152,4640.3,4640.2,0.3005]
[1756315675338,7.152,4640.3,4640.2,2.45557952]
[1756315677026,7.152,4640.3,4640.2,0.3005]
[1756315677232,7.152,4640.3,4640.2,2.15507952]
[1756315677409,7.4623,4640.3,4640.2,2.15507952]
[1756315678048,7.4623,4640.3,4640.1,2.26312293]
[1756315678448,7.152,4640.3,4640.2,2.15507952]
[1756315679158,7.152,4640.3,4640.1,0.108]
[1756315679312,7.9011,4640.3,4640.1,0.108]
[1756315679514,7.9011,4640.3,4640.1,2.26312177]
[1756315679837,7.4623,4640.3,4640.1,0.108]
[1756315680035,7.152,4640.3,4640.1,2.26312467]
[1756315680839,7.152,4640.3,4640.2,2.15507952]
[1756315681149,7.152,4640.3,4640.1,2.26308417]
[1756315681648,7.152,4640.3,4640.2,2.15507952]
[1756315681946,7.152,4640.3,4640.1,0.108]
[1756315682340,0.02155652,4640.2,4640.1,0.108]
[1756315682536,0.33185652,4640.2,4640.1,0.108]
[1756315682747,0.77065652,4640.2,4639.6,0.001]
[1756315682947,0.77065652,4640.2,4639.7,0.108]
[1756315683161,0.33185652,4640.2,4639.7,0.108]
[1756315683356,7.10882286,4640.0,4639.6,0.001]
[1756315683678,2.26326531,4639.8,4639.6,0.001]
[1756315683839,6.20116828,4639.7,4639.6,0.001]
[1756315684021,6.61841176,4639.7,4639.6,0.001]
[1756315685464,2.15549759,4639.3,4639.2,0.001]
[1756315685761,16.00087697,4639.3,4639.2,0.001]
[1756315685961,2.15568345,4638.9,4638.8,0.021]
[1756315686166,8.89123997,4638.9,4638.8,0.021]
[1756315686467,11.02346882,4638.9,4638.8,0.021]
[1756315686767,2.15614825,4637.9,4635.9,0.578]
[1756315686928,12.28652763,4637.9,4636.0,0.37]
[1756315687274,16.73107111,4637.9,4636.3,0.37]
[1756315687559,17.06866962,4637.9,4636.3,2.52688446]
[1756315687758,17.31138025,4637.9,4636.3,2.15688446]
[1756315687940,17.31138025,4637.9,4635.9,0.578]
[1756315688130,17.31138025,4637.9,4635.9,0.1579576]
[1756315688328,2.15661325,4636.9,4635.9,0.1579576]
[1756315688554,15.98143611,4636.9,4635.9,0.1579576]
[1756315688756,16.73053611,4636.9,4635.9,0.1579576]
[1756315688982,0.33763812,4636.9,4636.0,0.02157031]
[1756315689127,0.33763812,4636.9,4636.8,2.47715976]
[1756315689333,0.4388,4637.9,4636.8,1.15399548]
[1756315689633,2.15629329,4637.6,4636.8,0.3205]
[1756315689842,3.02155652,4637.6,4636.9,2.15661128]
[1756315690050,3.0,4637.6,4636.9,2.15661325]
[1756315690373,3.0,4637.6,4636.8,0.02]
[1756315690557,3.02155652,4637.6,4636.9,2.15660723]
[1756315690755,3.0,4637.6,4636.9,2.15660723]
[1756315691570,0.02155652,4637.5,4636.8,0.02]
[1756315691897,3.46035652,4637.6,4637.3,0.001]
[1756315692048,0.3103,4637.4,4637.3,0.001]
[1756315692549,0.4388,4637.5,4637.3,0.001]
[1756315692550,0.33759126,4637.8,4637.3,0.3015]
[1756315692747,2.15592525,4638.4,4637.3,0.3015]
[1756315693090,3.81378436,4638.7,4637.3,0.3015]
[1756315693091,1.99554662,4638.7,4637.5,0.792]
[1756315693243,3.72,4638.6,4637.7,2.15623617]
[1756315693447,0.33754662,4638.7,4638.0,2.15606542]
[1756315693652,0.33754662,4638.7,4638.2,2.15600402]
[1756315693856,0.33754662,4638.7,4637.7,0.37]
[1756315694054,3.02155652,4638.6,4637.9,2.15614641]
[1756315694345,3.0,4638.6,4637.9,2.15614641]
[1756315694541,0.02155652,4638.5,4637.9,2.15614641]
[1756315694966,0.02155652,4638.5,4638.0,2.15609353]
[1756315695249,0.35910314,4638.7,4637.8,2.15616245]
[1756315695467,0.35910314,4638.7,4638.2,0.108]
[1756315695850,0.35910314,4638.7,4638.2,2.2639937]
[1756315696074,0.33754662,4638.7,4638.2,2.2639937]
[1756315696374,0.02155652,4638.6,4638.2,0.108]
[1756315696574,0.49635652,4638.6,4638.2,0.108]
[1756315696746,2.1773873,4638.6,4638.2,0.108]
[1756315696947,0.2938,4638.3,4638.2,0.108]
[1756315697162,0.31535652,4638.3,4638.2,0.108]
[1756315697351,0.02155652,4638.6,4637.6,1.658]
[1756315697551,0.108,4638.5,4637.8,0.108]